{"text_format":"1","workbook":"xlsx","n_sheets":4,"sheets":["Guidance - PLEASE READ","SPF Calculator","Radiator Sizing Tool (optional)","Supporting Evidence (optional)"],"not_rendered":{"charts":0,"images":2,"macros":1,"external_links":0,"defined_names":2,"comments":0,"pivot_tables":0},"unopened":[],"bounds":{"document_bytes":16777216,"sheet_cells":100000,"rows_first":2000,"rows_last":500,"rows_between":2000,"halvings":0,"cell_chars":16384,"cell_head_chars":4096},"cells_cut":0,"cells_raw":0,"read":"whole","date_system":"1900"}

{"sheet":"Guidance - PLEASE READ","index":0,"n_rows":55,"n_cols":9,"rows_kept":55,"cut":false,"hidden":false,"merged":[[31,1,32,9],[34,1,35,9],[8,1,9,9],[20,8,20,9],[25,8,25,9],[21,8,21,9],[13,1,16,9]]}
[]
[null,"Domestic RHI Heat Pump SPF Calculator"]
[]
[null,"Version:","1.6","Oct 2014"]
[]
[]
[null,"Who needs to use this tool?"]
[]
[null,"• This tool is for MCS certified installers who have been commissioned to assess the Seasonal Performance Factor (SPF) of a heat pump on behalf of legacy applicants to the Domestic RHI"]
[]
[]
[null,"• This tool must be completed in line with the MCS Heat Emitter Guide for Domestic Heat Pumps"]
[]
[null,"• It must be sent to Ofgem with the customer’s application number. They will receive this after they have submitted their application. If your customer has not yet applied, please send the calculator back to them and they can email it to us filling in their application number (after they have submitted)."]
[]
[]
[]
[]
[null,"What sheets do I need to complete?"]
[]
[null,"• All MCS installers directed to this spreadsheet will need to complete:",null,null,null,null,null,null,"SPF Calculator"]
[null,"• To assist the calculations you may also want to use the optional:",null,null,null,null,null,null,"Radiator Sizing Tool"]
[]
[null,"What additional information can I submit?"]
[]
[null,"• Please save and attach any additional calculations to:",null,null,null,null,null,null,"Supporting Evidence"]
[]
[null,"What should I do next?"]
[]
[null,"• Check you have answered all relevant questions."]
[]
[null,"•  Please send the completed document back to your customer who must send it to us after they have applied – stating their application number on the document."]
[]
[]
[null,"• ONLY if you have your customer’s application number, can we accept an email with a copy of the completed SPF Calculator directly from the installer in the following format: "]
[]
[]
[]
[null,"To: ",null,"DomesticRHI@ofgem.gov.uk"]
[]
[null,"Email subject:",null,"<Application number [Axxxxxx] [applicant name] SPF Calculator>"]
[]
[null,"Attachments:",null,"<A copy of this spreadsheet, saved as '[Axxxxxx] SPF Calculator.xls'>"]
[]
[null,"Email text:",null,"Installation postcode:"]
[null,null,null,"Applicant name:"]
[null,null,null,"Domestic RHI application number:"]
[]
[]
[null,"Sources of help and guidance:"]
[]
[null,"Domestic RHI website"]
[null,"MCS Heat Emitter Guide for Domestic Heat Pumps"]
[null,"Supplementary Tables of Heat Emitter Outputs"]
[null,"Domestic RHI Essential Guide for Installers"]

{"sheet":"SPF Calculator","index":1,"n_rows":258,"n_cols":20,"rows_kept":258,"cut":false,"hidden":false,"merged":[[40,13,40,15],[41,13,41,15],[42,13,42,15],[43,13,43,15],[44,13,44,15],[0,0,0,21],[2,0,3,7],[2,11,3,18],[6,13,6,21],[7,15,9,21],[10,17,10,21],[15,2,15,5],[11,17,11,21],[13,21,14,21],[40,17,40,21],[30,13,30,15],[31,13,31,15],[32,13,32,15],[33,13,33,15],[34,13,34,15],[35,13,35,15],[37,17,37,21],[38,17,38,21],[39,17,39,21],[50,2,50,5],[52,2,52,5],[53,2,53,5],[54,2,54,5],[55,2,55,5],[56,2,56,5],[6,2,6,7],[7,4,7,7],[8,4,8,7],[9,2,11,7],[12,3,12,7],[19,7,19,10],[38,2,38,5],[39,2,39,5],[40,2,40,5],[41,2,41,5],[42,2,42,5],[32,2,32,5],[33,2,33,5],[34,2,34,5],[35,2,35,5],[36,2,36,5],[37,2,37,5],[43,2,43,5],[36,13,36,15],[37,13,37,15],[38,13,38,15],[39,13,39,15],[32,17,32,21],[33,17,33,21],[34,17,34,21],[35,17,35,21],[36,17,36,21],[44,2,44,5],[28,2,28,5],[27,7,28,7],[27,9,28,10],[30,9,30,10],[31,9,31,10],[32,9,32,10],[33,9,33,10],[34,9,34,10],[35,9,35,10],[36,9,36,10],[37,9,37,10],[38,9,38,10],[39,9,39,10],[40,9,40,10],[41,9,41,10],[42,9,42,10],[43,9,43,10],[10,10,10,16],[11,10,11,16],[13,10,14,20],[6,10,6,12],[21,1,24,21],[27,12,28,15],[28,17,28,21],[30,17,30,21],[31,17,31,21],[30,2,30,5],[31,2,31,5],[7,10,8,13],[81,1,82,8],[81,9,82,9],[93,4,93,8],[89,0,90,21],[87,18,87,19],[41,17,41,21],[42,17,42,21],[43,17,43,21],[44,17,44,21],[44,9,44,10],[93,11,93,13],[58,2,58,5],[59,2,59,5],[60,2,60,5],[61,2,61,5],[62,2,62,5],[63,2,63,5],[64,2,64,5],[65,2,65,5],[69,1,79,21],[66,2,66,5],[49,7,50,7],[52,19,52,21],[53,19,53,21],[63,19,63,21],[64,19,64,21],[65,19,65,21],[66,19,66,21],[50,19,50,21],[49,9,50,12],[52,9,52,11],[53,9,53,11],[54,9,54,11],[55,9,55,11],[49,14,50,15],[49,17,50,17],[54,19,54,21],[55,19,55,21],[56,19,56,21],[57,19,57,21],[58,19,58,21],[59,19,59,21],[60,19,60,21],[61,19,61,21],[62,19,62,21],[66,14,66,15],[56,9,56,11],[57,9,57,11],[58,9,58,11],[59,9,59,11],[60,9,60,11],[61,9,61,11],[62,9,62,11],[63,9,63,11],[64,9,64,11],[5,16,5,21],[84,1,85,8],[84,9,85,9],[84,15,85,15],[84,13,85,13],[81,11,82,15],[81,17,82,17],[65,9,65,11],[66,9,66,11],[52,14,52,15],[53,14,53,15],[54,14,54,15],[55,14,55,15],[56,14,56,15],[57,14,57,15],[58,14,58,15],[59,14,59,15],[60,14,60,15],[61,14,61,15],[62,14,62,15],[63,14,63,15],[64,14,64,15],[57,2,57,5],[65,14,65,15]]}
["SPF Calculator"]
[]
["Details of MCS-certified installer completing this form",null,null,null,null,null,null,null,null,null,null,"Domestic RHI applicant details"]
[]
[]
[null,null,null,null,null,null,null,null,null,null,"Domestic RHI application number:"]
["Installer name:",null,null,null,null,null,null,null,null,null,"Name:"]
["MCS Certificated Company Name:",null,null,null,null,null,null,null,null,null,"Installation address:"]
["MCS Certificated Company MCS Number:"]
["Company address:"]
[null,null,null,null,null,null,null,null,null,null,"Installation's MCS Certificate No:"]
[null,null,null,null,null,null,null,null,null,null,"MCS Certificated Product No:"]
["Company phone number:"]
[null,null,null,null,null,null,null,null,null,null,"Please confirm that the heat pump(s) at the address above are providing heat to only one single domestic property:"]
[]
["Type of heat pump: "]
[]
["Number of heated rooms in property:",null,null,null,null,null,null,"Number of unheated rooms: "]
["Number of rooms heated by radiators:"]
["Number of rooms heated by underfloor:",null,null,null,null,null,null,"Design external temp. (°C):"]
[]
[null,"Refer to the MCS 021 Heat Emitter Guide.  For radiators and convectors use the Temperature of the Space Heating Emitter Circuit (TSHEC) to look up the oversize factor.  TSHEC is described as ‘Heating circuit flow temperature’ in the HEG.  For underfloor heating use the TSHEC to look up the pipe spacing.  Choose final TSHEC, based on the worst performing room, with client’s agreement (ensuring the temperature is suitable for the emitter type, and bearing in mind the influence on costs)."]
[]
[]
[]
[]
["Rooms heated by radiators"]
[null,null,null,null,null,null,null,"Design int. temp. (°C)",null,"Heat loss power (W)",null,null,"Rated output of radiators at MW-AT 50°C"]
[null,null,"Label (eg 'bedroom 1')",null,null,null,null,null,null,null,null,null,null,null,null,null,null,"Oversize Factor"]
[]
["Room 1"]
["Room 2"]
["Room 3"]
["Room 4"]
["Room 5"]
["Room 6"]
["Room 7"]
["Room 8"]
["Room 9"]
["Room 10"]
["Room 11"]
["Room 12"]
["Room 13"]
["Room 14"]
["Room 15"]
["(Add more rows as required)"]
[]
["Rooms heated by underfloor"]
[]
[null,null,null,null,null,null,null,"Design int. temp. (°C)",null,"Specific heat loss power (W/m2)",null,null,null,null,"Underfloor heating type",null,null,"Floor covering"]
[null,null,"Label (eg 'bedroom 1')",null,null,null,null,null,null,null,null,null,null,null,null,null,null,null,null,"Pipe spacing"]
[]
["Room 1"]
["Room 2"]
["Room 3"]
["Room 4"]
["Room 5"]
["Room 6"]
["Room 7"]
["Room 8"]
["Room 9"]
["Room 10"]
["Room 11"]
["Room 12"]
["Room 13"]
["Room 14"]
["Room 15"]
["(Add more rows as required)"]
[]
[null,"Use the Heat Emitter Guide to look up TSHEC and temperature star rating corresponding to the oversize factor applicable to the emitter installation as a whole.  If there is no exact correspondence, choose the 5°C temperature step higher and the number of stars lower.\n\nNOTE (a): The Temperature Star Rating must be determined by the temperature (TFSH) of the water leaving the heat pump when supplying space heating at peak design conditions (ie, at the lowest external design temperature).\nNOTE (b): If a blending valve has been installed, TFSH may NOT be the same as the temperature at which the emitters have been designed to operate (TSHEC).\nNOTE (c): The Temperature Star Rating should be recorded as follows:\n“6-star” when TFSH = 35°C or lower; “5-star” when TFSH = 36-40°C; “4-star” when TFSH = 41-45°C; “3-star” when TFSH = 46-50°C; “2-star” when TFSH = 51-55°C; “1-star” when TFSH = 56-60°C; “None” when TFSH = >60°C.\n"]
[]
[]
[]
[]
[]
[]
[]
[]
[]
[]
[]
[null,"Temperature of the water leaving the heat pump when supplying space heating at peak design conditions (°C):",null,null,null,null,null,null,null,null,null,"Does system contain any blending valves?"]
[]
[]
[null,"Temperature Star Rating:",null,null,null,null,null,null,null,null,null,null,null,"SPF:"]
[]
[]
["Please confirm that the heat loss calculations for the room losses entered above have been done in accordance with BS EN 12831: "]
[]
["I declare that, to the best of my knowledge and belief, the information provided as part of this form is accurate with respect to the property for which these calculations are provided.  "]
[]
[]
[]
["MCS-certified installer signature:",null,null,null,null,null,null,null,null,"Date: "]
[]
[]
[]
[]
[]
[]
[]
[]
[]
[]
[]
[]
[]
[]
[]
[]
[]
[]
[]
[]
[]
[]
[]
[]
[]
[]
[]
[]
[]
[]
[]
[]
[]
[]
[]
[]
[]
[]
[]
[]
[]
[]
[]
[]
[]
[]
[]
[]
[]
[]
[]
[]
[]
[]
[]
[]
[]
[]
[]
[]
[]
[]
[]
[]
[]
[]
[]
[]
[]
[]
[]
[]
[]
[]
[]
[]
[]
[]
[]
[]
[]
[]
[]
[]
[]
[]
[]
[]
[]
[]
[]
[]
[]
[]
[]
[]
[]
[]
[]
[]
[]
[]
[]
[]
[]
[]
[]
[]
[]
[]
[]
[]
[]
[]
[]
[]
[]
[]
[]
[]
[]
[]
[]
[]
[null,0,null,"Ground Source Heat Pump"]
[null,1,null,"Air Source Heat Pump"]
[null,2]
[null,3,null,"Yes",null,35]
[null,4,null,"No",null,40]
[null,5,null,null,null,45]
[null,6,null,"Screed",null,50]
[null,7,null,"Alu. Panel",null,55]
[null,8,null,null,null,60]
[null,9,null,"Tile",null,">60"]
[null,10,null,"Wood"]
[null,11,null,"Carpet",null,"Yes"]
[null,12,null,null,null,"No"]
[null,13,null,"PS≤100"]
[null,14,null,"PS≤150"]
[null,15,null,"PS≤200"]
[null,16,null,"PS≤250"]
[null,17,null,"PS≤300"]
[null,18]
[null,19,null,"None"]
[null,20,null,"1-star"]
[null,21,null,"2-star"]
[null,22,null,"3-star"]
[null,23,null,"4-star"]
[null,24,null,"5-star"]
[null,25,null,"6-star"]
[null,26]
[null,27,null,"<2.1"]
[null,28,null,2.1]
[null,29,null,2.4]
[null,30,null,2.7]
[null,null,null,"<2.8"]
[null,null,null,2.8]
[null,null,null,"3.0"]
[null,null,null,3.1]
[null,null,null,3.4]
[null,null,null,3.6]
[null,null,null,3.7]
[null,null,null,4.0999999999999996]
[null,null,null,4.3]

{"sheet":"Radiator Sizing Tool (optional)","index":2,"n_rows":74,"n_cols":28,"rows_kept":74,"cut":false,"hidden":false,"merged":[[33,0,33,2],[34,0,34,1]]}
["Room","Room Temp (⁰C)","Heat Loss for room (Watts)","Mean Rad temp (⁰C)","Delta T (⁰C)","Radiator Height","Radiator Size (WxH)","Radiator Panel/Convector","No. of Rads in room","Output of Rad @ delta t 50⁰C (Watts)","Output of Rad at required delta t (Watts) ","Heat Loss for room (Watts)","Difference (Watts)","Min Rad Size Required @ Delta t 50⁰C"]
["Entrance",18,292,{"$f":"F$34-4","v":41},{"$f":"D2-B2","v":23},450,"450x0500","K2",1,{"$f":"IF(H2=\"P1\",LOOKUP(G2,W$3:W$74,X$3:X$74),IF(H2=\"K1\",LOOKUP(G2,W$3:W$74,Y$3:Y$74),IF(H2=\"P+\",LOOKUP(G2,W$3:W$74,Z$3:Z$74),IF(H2=\"K2\",LOOKUP(G2,W$3:W$74,AA$3:AA$74),IF(H2=\"K3\",LOOKUP(G2,W$3:W$74,AB$3:AB$74),0)))))*I2","v":686},{"$f":"J2*IF(D2=41,C$36,C$37)","v":208.54399999999998},{"$f":"C2","v":292},{"$f":"K2-L2","v":-83.456000000000017},{"$f":"L2/IF(E2=21,C$36,IF(E2=20,C$36,C$37))","v":719.21182266009851},null,null,null,null,null,null,null,null,null,"P1","K1","P+","K2","K3"]
[null,null,null,{"$f":"F$34-4","v":41},41,null,null,null,null,{"$f":"IF(H3=\"P1\",LOOKUP(G3,W$3:W$74,X$3:X$74),IF(H3=\"K1\",LOOKUP(G3,W$3:W$74,Y$3:Y$74),IF(H3=\"P+\",LOOKUP(G3,W$3:W$74,Z$3:Z$74),IF(H3=\"K2\",LOOKUP(G3,W$3:W$74,AA$3:AA$74),IF(H3=\"K3\",LOOKUP(G3,W$3:W$74,AB$3:AB$74),0)))))*I3","v":0},{"$f":"J3*IF(D3=41,C$36,C$37)","v":0},{"$f":"C3","v":0},0,{"$f":"L3/IF(E3=21,C$36,C$37)","v":0},null,null,null,null,null,300,null,300,"300x0500","-",255,373,491,"-"]
[null,null,null,41,41,null,null,null,null,0,0,{"$f":"C4","v":0},0,0,null,null,null,null,null,450,null,300,"300x1000","-",509,745,982,1349]
[null,null,null,41,41,null,null,null,null,0,0,0,0,0,null,null,null,null,null,500,null,300,"300x1500","-",764,1118,1473,"-"]
[null,null,null,41,41,null,null,null,null,0,0,0,0,0,null,null,null,null,null,600,null,300,"300x2000","-",1018,1490,1964,2698]
[null,null,null,41,41,null,null,null,null,0,0,0,0,0,null,null,null,null,null,700,null,300,"300x2500","-",1273,1863,2455,"-"]
[null,null,null,41,41,null,null,null,null,0,0,0,0,0,null,null,null,null,null,null,null,300,"300x3000","-",1527,2235,2946,"-"]
[null,null,null,41,41,null,null,null,null,0,0,0,0,0,null,null,null,null,"P1",null,null,450,"450x0400",190,302,422,548,"-"]
[null,null,null,41,41,null,null,null,null,0,0,0,0,0,null,null,null,null,"K1",null,null,450,"450x0500",237,378,528,686,"-"]
[null,null,null,41,41,null,null,null,null,0,0,0,0,0,null,null,null,null,"P+",null,null,450,"450x0600",284,454,633,823,"-"]
[null,null,null,41,41,null,null,null,null,0,0,0,0,0,null,null,null,null,"K2",null,null,450,"450x0700",332,529,739,960,"-"]
[null,null,null,41,41,null,null,null,null,0,0,0,0,0,null,null,null,null,"K3",null,null,450,"450x0800",379,605,844,1097,"-"]
[null,null,null,41,41,null,null,null,null,0,0,0,0,0,null,null,null,null,null,null,null,450,"450x0900",427,680,950,1234,"-"]
[null,null,null,41,41,null,null,null,null,0,0,0,0,0,null,null,null,null,18,null,null,450,"450x1000",474,756,1055,1371,"-"]
[null,null,null,41,41,null,null,null,null,0,0,0,0,0,null,null,null,null,21,null,null,450,"450x1100","-",832,1161,1508,"-"]
[null,null,null,41,41,null,null,null,null,0,0,0,0,0,null,null,null,null,22,null,null,450,"450x1200",569,907,1266,1645,"-"]
[null,null,null,41,41,null,null,null,null,0,0,0,0,0,null,null,null,null,null,null,null,450,"450x1400",664,1058,1477,1919,"-"]
[null,null,null,41,41,null,null,null,null,0,0,0,0,0,null,null,null,null,1,null,null,450,"450x1600",758,1210,1688,2194,"-"]
[null,null,null,41,41,null,null,null,null,0,0,0,0,0,null,null,null,null,2,null,null,450,"450x1800","-",1361,1899,2468,"-"]
[null,null,null,41,41,null,null,null,null,0,0,0,0,0,null,null,null,null,3,null,null,450,"450x2000","-",1512,2110,2742,"-"]
[null,null,null,41,41,null,null,null,null,0,0,0,0,0,null,null,null,null,null,null,null,450,"450x2200","-",1663,2321,3016,"-"]
[null,null,null,41,41,null,null,null,null,0,0,0,0,0,null,null,null,null,45,null,null,450,"450x2400","-",1814,2532,3290,"-"]
[null,null,null,41,41,null,null,null,null,0,0,0,0,0,null,null,null,null,50,null,null,450,"450x2600","-",1966,2743,3565,"-"]
[null,null,null,41,41,null,null,null,null,0,0,0,0,0,null,null,null,null,null,null,null,450,"450x2800","-",2117,2954,3939,"-"]
[null,null,null,41,41,null,null,null,null,0,0,0,0,0,null,null,null,null,null,null,null,450,"450x3000","-",2268,3165,4113,"-"]
[null,null,null,41,41,null,null,null,null,0,0,0,0,0,null,null,null,null,null,null,null,500,"500x0600","-","-","-","-",1234]
[null,null,null,41,41,null,null,null,null,0,0,0,0,0,null,null,null,null,null,null,null,500,"500x0700","-","-","-","-",1439]
[null,null,null,41,41,null,null,null,null,0,0,0,0,0,null,null,null,null,null,null,null,500,"500x0800","-","-","-","-",1645]
[null,null,null,41,41,null,null,null,null,0,0,0,0,0,null,null,null,null,null,null,null,500,"500x0900","-","-","-","-",1850]
[null,null,null,41,41,null,null,null,null,0,0,0,0,0,null,null,null,null,null,null,null,500,"500x1000","-","-","-","-",2056]
[null,null,null,null,null,null,null,null,null,"Total:",{"$f":"SUM(K2:K10)","v":208.54399999999998},{"$f":"SUM(L2:L10)","v":292},{"$f":"SUM(M2:M10)","v":-83.456000000000017},{"$f":"IF(M32<-50,\"Up radiator sizes\",IF(AND(M32>=-50,M32<0),\"Look at radiator sizing\",IF(M2<-50,\"Up radiator sizes\",IF(M3<-50,\"Up radiator sizes\",IF(M4<-50,\"Up radiator sizes\",IF(M5<-50,\"Up radiator sizes\",IF(M6<-50,\"Up radiator sizes\",IF(M7<-50,\"Up radiator sizes\",IF(M8<-50,\"Up radiator sizes\",IF(M9<-50,\"Up radiator sizes\",IF(M10<-50,\"Up radiator sizes\",\"Radiator sizing good\")))))))))))","v":"Up radiator sizes"},null,null,null,null,null,null,null,500,"500x1100","-","-","-","-",2262]
[null,null,null,null,null,null,null,null,null,null,null,null,null,null,null,null,null,null,null,null,null,500,"500x1200","-","-","-","-",2467]
["Stelrad Correction Factor ",null,null,"Select Flow Temp from HP (⁰C):",null,45,"Red","requires input (Room Temp either 18, 21 or 22), (Heat loss for room), (Rad Height), (Radiator Size), (Panel/Convector)",null,null,null,null,null,null,null,null,null,null,null,null,null,500,"500x1400","-","-","-","-",2878]
["Delta T (⁰C)",null,null,null,null,null,"Purple","actual output of rad at design flow temp (45⁰C), (generates automatically)",null,null,null,null,null,null,null,null,null,null,null,null,null,500,"500x1600","-","-","-","-",3290]
[null,20,0.30399999999999999,null,null,null,"Green","List of min rad outputs at delta t 50⁰C. Use this to govern rad sizes, (generates automatically)",null,null,null,null,null,null,null,null,null,null,null,null,null,500,"500x1800","-","-","-","-",3701]
[null,25,0.40600000000000003,null,null,null,null,null,null,null,null,null,null,null,null,null,null,null,null,null,null,500,"500x2000","-","-","-","-",4112]
[null,null,null,null,null,null,null,null,null,null,null,null,null,null,null,null,null,null,null,null,null,500,"500x2400","-","-","-","-",4934]
[null,null,null,null,null,null,null,null,null,null,null,null,null,null,null,null,null,null,null,null,null,600,"600x0400",248,392,538,693,956]
[null,null,null,null,null,null,null,null,null,null,null,null,null,null,null,null,null,null,null,null,null,600,"600x0500",310,490,673,866,1195]
[null,null,null,null,null,null,null,null,null,null,null,null,null,null,null,null,null,null,null,null,null,600,"600x0600",371,588,807,1039,1433]
[null,null,null,null,null,null,null,null,null,null,null,null,null,null,null,null,null,null,null,null,null,600,"600x0700",433,686,942,1212,1672]
[null,null,null,null,null,null,null,null,null,null,null,null,null,null,null,null,null,null,null,null,null,600,"600x0800",495,784,1076,1386,1911]
[null,null,null,null,null,null,null,null,null,null,null,null,null,null,null,null,null,null,null,null,null,600,"600x0900",557,882,1211,1559,2150]
[null,null,null,null,null,null,null,null,null,null,null,null,null,null,null,null,null,null,null,null,null,600,"600x1000",619,980,1345,1732,2389]
[null,null,null,null,null,null,null,null,null,null,null,null,null,null,null,null,null,null,null,null,null,600,"600x1100","-",1078,1480,1905,2628]
[null,null,null,null,null,null,null,null,null,null,null,null,null,null,null,null,null,null,null,null,null,600,"600x1200",743,1176,1614,2078,2867]
[null,null,null,null,null,null,null,null,null,null,null,null,null,null,null,null,null,null,null,null,null,600,"600x1400",867,1372,1883,2425,3345]
[null,null,null,null,null,null,null,null,null,null,null,null,null,null,null,null,null,null,null,null,null,600,"600x1600",990,1568,2152,2771,3822]
[null,null,null,null,null,null,null,null,null,null,null,null,null,null,null,null,null,null,null,null,null,600,"600x1800","-",1764,2421,3118,4300]
[null,null,null,null,null,null,null,null,null,null,null,null,null,null,null,null,null,null,null,null,null,600,"600x2000","-",1960,2690,3464,4778]
[null,null,null,null,null,null,null,null,null,null,null,null,null,null,null,null,null,null,null,null,null,600,"600x2200","-",2156,2959,3810,5734]
[null,null,null,null,null,null,null,null,null,null,null,null,null,null,null,null,null,null,null,null,null,600,"600x2400","-",2352,3228,4157,"-"]
[null,null,null,null,null,null,null,null,null,null,null,null,null,null,null,null,null,null,null,null,null,600,"600x2600","-",2548,3497,4503,"-"]
[null,null,null,null,null,null,null,null,null,null,null,null,null,null,null,null,null,null,null,null,null,600,"600x2800","-",2744,3766,4850,"-"]
[null,null,null,null,null,null,null,null,null,null,null,null,null,null,null,null,null,null,null,null,null,600,"600x3000","-",2940,4035,5196,"-"]
[null,null,null,null,null,null,null,null,null,null,null,null,null,null,null,null,null,null,null,null,null,700,"700x0400","-",447,612,784,"-"]
[null,null,null,null,null,null,null,null,null,null,null,null,null,null,null,null,null,null,null,null,null,700,"700x0500","-",559,765,981,1356]
[null,null,null,null,null,null,null,null,null,null,null,null,null,null,null,null,null,null,null,null,null,700,"700x0600","-",670,918,1177,1627]
[null,null,null,null,null,null,null,null,null,null,null,null,null,null,null,null,null,null,null,null,null,700,"700x0700","-",782,1071,1373,1898]
[null,null,null,null,null,null,null,null,null,null,null,null,null,null,null,null,null,null,null,null,null,700,"700x0800","-",894,1224,1569,2170]
[null,null,null,null,null,null,null,null,null,null,null,null,null,null,null,null,null,null,null,null,null,700,"700x0900","-",1005,1377,1765,2441]
[null,null,null,null,null,null,null,null,null,null,null,null,null,null,null,null,null,null,null,null,null,700,"700x1000","-",1117,1530,1961,2712]
[null,null,null,null,null,null,null,null,null,null,null,null,null,null,null,null,null,null,null,null,null,700,"700x1100","-",1229,1683,2157,2983]
[null,null,null,null,null,null,null,null,null,null,null,null,null,null,null,null,null,null,null,null,null,700,"700x1200","-",1340,1836,2353,3254]
[null,null,null,null,null,null,null,null,null,null,null,null,null,null,null,null,null,null,null,null,null,700,"700x1400","-",1564,2142,2745,3797]
[null,null,null,null,null,null,null,null,null,null,null,null,null,null,null,null,null,null,null,null,null,700,"700x1600","-",1787,2448,3138,4339]
[null,null,null,null,null,null,null,null,null,null,null,null,null,null,null,null,null,null,null,null,null,700,"700x1800","-",2011,2754,3530,4882]
[null,null,null,null,null,null,null,null,null,null,null,null,null,null,null,null,null,null,null,null,null,700,"700x2000","-",2234,3060,3922,5424]
[null,null,null,null,null,null,null,null,null,null,null,null,null,null,null,null,null,null,null,null,null,700,"700x2200","-",2457,3366,4314,"-"]
[null,null,null,null,null,null,null,null,null,null,null,null,null,null,null,null,null,null,null,null,null,700,"700x2400","-",2681,3672,4706,"-"]
[null,null,null,null,null,null,null,null,null,null,null,null,null,null,null,null,null,null,null,null,null,700,"700x2600","-",2904,3978,5099,"-"]
[null,null,null,null,null,null,null,null,null,null,null,null,null,null,null,null,null,null,null,null,null,700,"700x2800","-",3128,4284,5491,"-"]
[null,null,null,null,null,null,null,null,null,null,null,null,null,null,null,null,null,null,null,null,null,700,"700x3000","-",3351,4590,5883,"-"]

{"sheet":"Supporting Evidence (optional)","index":3,"n_rows":0,"n_cols":0,"rows_kept":0,"cut":false,"hidden":false,"merged":[]}